{"text_format":"1","workbook":"xlsx","n_sheets":23,"sheets":["Data Validation","Instructions & Glossary","Base Building Information","DataCollection_Suite1","DataCollection_Suite2","DataCollection_Suite3","DataCollection_Suite4","DataCollection_Suite5","DataCollection_Suite6","DataCollection_Suite7","DataCollection_Suite8","DataCollection_Suite9","DataCollection_Suite10","DataCollection_Suite11","DataCollection_Suite12","DataCollection_Suite13","DataCollection_Suite14","DataCollection_Suite15","DataCollection_Suite16","DataCollection_Suite17","DataCollection_Suite18","DataCollection_Suite19","DataCollection_Suite20"],"not_rendered":{"charts":0,"images":20,"macros":1,"external_links":1,"defined_names":112,"comments":0,"pivot_tables":0},"unopened":[],"bounds":{"document_bytes":16777216,"sheet_cells":100000,"rows_first":2000,"rows_last":500,"rows_between":2000,"halvings":0,"cell_chars":16384,"cell_head_chars":4096},"cells_cut":0,"cells_raw":0,"read":"whole","date_system":"1900"}

{"sheet":"Data Validation","index":0,"n_rows":21,"n_cols":15,"rows_kept":21,"cut":false,"hidden":true,"merged":[]}
["Light Source",null,null,"Motion Sensor",null,"Daylight Sensor",null,"Tuning",null,"# of Suites",null,"index","sheetname","visible","sheetname"]
["LED Fixture",null,null,"Column1",null,"Column1",null,"Column1",null,1,null,1,"DataCollection_Suite1",{"$f":"IF('Base Building Information'!$C$4 >='Data Validation'!J2,1,0)","v":1},{"$f":"IF(N2=1,M2,\"\")","v":"DataCollection_Suite1"}]
["LED Bulb or TLED",null,null,"Vacancy",null,"Yes",null,"Yes",null,2,null,2,"DataCollection_Suite2",{"$f":"IF('Base Building Information'!$C$4 >='Data Validation'!J3,1,0)","v":0},{"$f":"IF(N3=1,M3,\"\")","v":""}]
["Flourescent Tube (T8, T5)",null,null,"Occupancy",null,"No",null,"No",null,3,null,3,"DataCollection_Suite3",{"$f":"IF('Base Building Information'!$C$4 >='Data Validation'!J4,1,0)","v":0},""]
["CFL",null,null,"None",null,null,null,null,null,4,null,4,"DataCollection_Suite4",{"$f":"IF('Base Building Information'!$C$4 >='Data Validation'!J5,1,0)","v":0},""]
["Halogen",null,null,null,null,null,null,null,null,5,null,5,"DataCollection_Suite5",{"$f":"IF('Base Building Information'!$C$4 >='Data Validation'!J6,1,0)","v":0},""]
["Incandescent",null,null,null,null,null,null,null,null,6,null,6,"DataCollection_Suite6",{"$f":"IF('Base Building Information'!$C$4 >='Data Validation'!J7,1,0)","v":0},""]
[null,null,null,null,null,null,null,null,null,7,null,7,"DataCollection_Suite7",{"$f":"IF('Base Building Information'!$C$4 >='Data Validation'!J8,1,0)","v":0},""]
[null,null,null,null,null,null,null,null,null,8,null,8,"DataCollection_Suite8",{"$f":"IF('Base Building Information'!$C$4 >='Data Validation'!J9,1,0)","v":0},""]
[null,null,null,null,null,null,null,null,null,9,null,9,"DataCollection_Suite9",{"$f":"IF('Base Building Information'!$C$4 >='Data Validation'!J10,1,0)","v":0},""]
[null,null,null,null,null,null,null,null,null,10,null,10,"DataCollection_Suite10",{"$f":"IF('Base Building Information'!$C$4 >='Data Validation'!J11,1,0)","v":0},{"$f":"IF(N11=1,M11,\"\")","v":""}]
[null,null,null,null,null,null,null,null,null,11,null,11,"DataCollection_Suite11",{"$f":"IF('Base Building Information'!$C$4 >='Data Validation'!J12,1,0)","v":0},{"$f":"IF(N12=1,M12,\"\")","v":""}]
[null,null,null,null,null,null,null,null,null,12,null,12,"DataCollection_Suite12",{"$f":"IF('Base Building Information'!$C$4 >='Data Validation'!J13,1,0)","v":0},{"$f":"IF(N13=1,M13,\"\")","v":""}]
[null,null,null,null,null,null,null,null,null,13,null,13,"DataCollection_Suite13",{"$f":"IF('Base Building Information'!$C$4 >='Data Validation'!J14,1,0)","v":0},""]
[null,null,null,null,null,null,null,null,null,14,null,14,"DataCollection_Suite14",{"$f":"IF('Base Building Information'!$C$4 >='Data Validation'!J15,1,0)","v":0},""]
[null,null,null,null,null,null,null,null,null,15,null,15,"DataCollection_Suite15",{"$f":"IF('Base Building Information'!$C$4 >='Data Validation'!J16,1,0)","v":0},""]
[null,null,null,null,null,null,null,null,null,16,null,16,"DataCollection_Suite16",{"$f":"IF('Base Building Information'!$C$4 >='Data Validation'!J17,1,0)","v":0},""]
[null,null,null,null,null,null,null,null,null,17,null,17,"DataCollection_Suite17",{"$f":"IF('Base Building Information'!$C$4 >='Data Validation'!J18,1,0)","v":0},""]
[null,null,null,null,null,null,null,null,null,18,null,18,"DataCollection_Suite18",{"$f":"IF('Base Building Information'!$C$4 >='Data Validation'!J19,1,0)","v":0},""]
[null,null,null,null,null,null,null,null,null,19,null,19,"DataCollection_Suite19",{"$f":"IF('Base Building Information'!$C$4 >='Data Validation'!J20,1,0)","v":0},""]
[null,null,null,null,null,null,null,null,null,20,null,20,"DataCollection_Suite20",{"$f":"IF('Base Building Information'!$C$4 >='Data Validation'!J21,1,0)","v":0},""]

{"sheet":"Instructions & Glossary","index":1,"n_rows":16,"n_cols":2,"rows_kept":16,"cut":false,"hidden":false,"merged":[[8,1,8,9],[15,1,15,9],[6,1,6,9],[5,1,5,9],[3,1,3,9],[11,1,11,9],[12,1,12,9],[14,1,14,9],[9,1,9,9],[7,1,7,3],[13,1,13,9]]}
["ENERGY STAR Tenant Space Lighting Questionnaire               "]
[]
[null,"INSTRUCTIONS"]
[null,"Use this workbook to enter lighting fixture details for each floor or suite a tenant occupies. The information entered into this workbook will be used by EPA to test the calculations and functionality of the web tool for the ENERGY STAR® Tenant Space recognition in ENERGY STAR Portfolio Manager®. Please note that integrated LED fixtures require different information to be entered than fixtures with replacement lamps. Cells in GREY do not need to be completed for that fixture."]
[]
[null,"This workbook is designed for tenants that occupy one or more \"suites\" of leased space in a single building. \n\nFor this workbook, a suite may be an entire floor, part of a floor, or two floors if they are linked by an open, internal staircase. Users can enter up to 20 different suites. Use the drop-down menu on the Base Building Information tab to select the number of suites, which will automatically generate a data collection tab for each one. You may also name the individual suites for tracking purposes, such as floor or suite number.  For each suite, please provide all of the lighting information that corresponds to lighting fixtures in that suite.  NOTE: for suites with similar fixtures, you can copy information from a different suite using the copy button. "]
[]
[null,"GLOSSARY"]
[null,"Bulb Wattage: is the wattage of the individual bulb/lamp installed in the fixture.  If you have fixtures that contain multiple bulbs/lamps (e.g., two or more fluorescent [T5, T8] bulbs or LED tubes), only enter the wattage of a single lamp/bulb."]
[null,"Fixture Wattage: is the wattage of the entire fixture. Note this is only applicable to integrated LED Fixtures with no replaceable bulb/lamp."]
[null,"Total number of fixtures: is the total number of fixtures of this type found in the Tenant Space.  A single fixture with multiple bulbs/lamps should be entered as “1”."]
[null,"Fixture Type: The intention of this field is to allow users to track and organize fixtures in the space, and a specific answer is not required.  This field will not be used in the lighting estimate.                                                   "]
[null,"Occupancy Sensor (type of lighting control):  Turns lights on automatically when an occupant enters, and off when they leave.                                                                                                                 "]
[null,"Vacancy Sensor (type of lighting control): Requires manual activation of lights and turns them off automatically when occupants leave.                                                                                                                         "]
[null,"Daylight Sensor (type of lighting control): A daylight sensor uses photocontrols or a photosensor to either turn off or dim the electric lighting in response to the available daylight entering the space.                                  "]
[null,"Tuning: Light output of a fixture is adjusted to the specific level needed for the task or purpose.                                                                                                                 "]

{"sheet":"Base Building Information","index":2,"n_rows":24,"n_cols":8,"rows_kept":24,"cut":false,"hidden":false,"merged":[[21,3,21,4],[22,3,22,4],[23,3,23,4],[15,3,15,4],[16,3,16,4],[17,3,17,4],[18,3,18,4],[19,3,19,4],[11,3,11,4],[12,3,12,4],[13,3,13,4],[14,3,14,4],[20,3,20,4],[6,3,6,4],[7,3,7,4],[8,3,8,4],[9,3,9,4],[10,3,10,4],[0,1,0,4],[3,3,3,4],[4,3,4,4],[2,3,2,4],[5,3,5,4]]}
[null,"ENERGY STAR Tenant Space Lighting Questionnaire",null,null,null,null,null,{"$f":"MATCH(Suite_To_Copy,$C$5:$C$24,0)","v":{"$error":"#N/A"}}]
[]
[null,null,"Answer","Notes"]
[null,"Number of Suites",1]
[null,"Name of Suite 1"]
[null,"Name of Suite 2"]
[null,"Name of Suite 3"]
[null,"Name of Suite 4"]
[null,"Name of Suite 5"]
[null,"Name of Suite 6"]
[null,"Name of Suite 7"]
[null,"Name of Suite 8"]
[null,"Name of Suite 9"]
[null,"Name of Suite 10"]
[null,"Name of Suite 11"]
[null,"Name of Suite 12"]
[null,"Name of Suite 13"]
[null,"Name of Suite 14"]
[null,"Name of Suite 15"]
[null,"Name of Suite 16"]
[null,"Name of Suite 17"]
[null,"Name of Suite 18"]
[null,"Name of Suite 19"]
[null,"Name of Suite 20"]

{"sheet":"DataCollection_Suite1","index":3,"n_rows":12,"n_cols":11,"rows_kept":12,"cut":false,"hidden":false,"merged":[[2,5,2,10],[8,3,8,10],[0,0,0,11],[1,0,1,3],[1,4,1,8],[1,9,1,10],[2,1,2,3],[7,5,7,6],[7,7,7,8],[3,5,6,10]]}
["ENERGY STAR Tenant Space Lighting Questionnaire"]
[]
[null,"Enter the following information:",null,null,null,"Need to copy information from this suite to another suite?"]
[null,"Suite Name",null,{"$f":"IF(ISBLANK('Base Building Information'!C5),\"\",'Base Building Information'!C5)","v":""},null,"Select a destination sheet from dropdown and click \"Copy data to another suite\". Please review copied information to ensure that all entries are correct for this suite. (NOTE:  You must enter a name for each suite on the Base Building Information tab to enable this function.)"]
[null,"Square Footage"]
[null,"Weekly Operating Hours"]
[]
[null,null,null,null,null,"Select a Suite:",null,"DataCollection_Suite3"]
[null,null,null,"Lighting Fixture Information"]
[null,"Fixture Name",null,"Light Source","Number of Bulbs","Bulb Wattage","Fixture Wattage","Total Number of Fixtures","Motion Sensor","Daylight Sensor","Tuning"]
[null,"Example Fixture 1",null,"LED Fixture",null,null,18,1,"Vacancy","Yes","Yes"]
[null,"Example Fixture 2",null,"CFL",2,23,null,4,"Occupancy","No","No"]

{"sheet":"DataCollection_Suite2","index":4,"n_rows":12,"n_cols":11,"rows_kept":12,"cut":false,"hidden":true,"merged":[[8,3,8,10],[0,0,0,11],[1,0,1,3],[1,4,1,8],[1,9,1,10],[2,1,2,3],[2,5,2,10],[3,5,6,10],[7,5,7,6],[7,7,7,8]]}
["ENERGY STAR Tenant Space Lighting Questionnaire"]
[]
[null,"Enter the following information:",null,null,null,"Need to copy information from this suite to another suite?"]
[null,"Suite Name",null,{"$f":"IF(ISBLANK('Base Building Information'!C6),\"\",'Base Building Information'!C6)","v":""},null,"Select a destination sheet from dropdown and click \"Copy data to another suite\". Please review copied information to ensure that all entries are correct for this suite. (NOTE:  You must enter a name for each suite on the Base Building Information tab to enable this function.)"]
[null,"Square Footage"]
[null,"Weekly Operating Hours"]
[]
[null,null,null,null,null,"Select a Suite:",null,"DataCollection_Suite2"]
[null,null,null,"Lighting Fixture Information"]
[null,"Fixture Name",null,"Light Source","Number of Bulbs","Bulb Wattage","Fixture Wattage","Total Number of Fixtures","Motion Sensor","Daylight Sensor","Tuning"]
[null,"Example Fixture 1",null,"LED Fixture",null,null,18,1,"Vacancy","Yes","Yes"]
[null,"Example Fixture 3",null,"CFL",2,23,null,4,"Occupancy","No","No"]

{"sheet":"DataCollection_Suite3","index":5,"n_rows":12,"n_cols":11,"rows_kept":12,"cut":false,"hidden":true,"merged":[[8,3,8,10],[0,0,0,11],[1,0,1,3],[1,4,1,8],[1,9,1,10],[2,1,2,3],[2,5,2,10],[3,5,6,10],[7,5,7,6],[7,7,7,8]]}
["ENERGY STAR Tenant Space Lighting Questionnaire"]
[]
[null,"Enter the following information:",null,null,null,"Need to copy information from this suite to another suite?"]
[null,"Suite Name",null,null,null,"Select a destination sheet from dropdown and click \"Copy data to another suite\". Please review copied information to ensure that all entries are correct for this suite. (NOTE:  You must enter a name for each suite on the Base Building Information tab to enable this function.)"]
[null,"Square Footage"]
[null,"Weekly Operating Hours"]
[]
[null,null,null,null,null,"Select a Suite:",null,"DataCollection_Suite3"]
[null,null,null,"Lighting Fixture Information"]
[null,"Fixture Name",null,"Light Source","Number of Bulbs","Bulb Wattage","Fixture Wattage","Total Number of Fixtures","Motion Sensor","Daylight Sensor","Tuning"]
[null,"Example Fixture 1",null,"LED Fixture",null,null,18,1,"Vacancy","Yes","Yes"]
[null,"Example Fixture 2",null,"CFL",2,23,null,4,"Occupancy","No","No"]

{"sheet":"DataCollection_Suite4","index":6,"n_rows":12,"n_cols":11,"rows_kept":12,"cut":false,"hidden":true,"merged":[[8,3,8,10],[0,0,0,11],[1,0,1,3],[1,4,1,8],[1,9,1,10],[2,1,2,3],[2,5,2,10],[3,5,6,10],[7,5,7,6],[7,7,7,8]]}
["ENERGY STAR Tenant Space Lighting Questionnaire"]
[]
[null,"Enter the following information:",null,null,null,"Need to copy information from this suite to another suite?"]
[null,"Suite Name",null,{"$f":"IF(ISBLANK('Base Building Information'!C8),\"\",'Base Building Information'!C8)","v":""},null,"Select a destination sheet from dropdown and click \"Copy data to another suite\". Please review copied information to ensure that all entries are correct for this suite. (NOTE:  You must enter a name for each suite on the Base Building Information tab to enable this function.)"]
[null,"Square Footage"]
[null,"Weekly Operating Hours"]
[]
[null,null,null,null,null,"Select a Suite:",null,"DataCollection_Suite1"]
[null,null,null,"Lighting Fixture Information"]
[null,"Fixture Name",null,"Light Source","Number of Bulbs","Bulb Wattage","Fixture Wattage","Total Number of Fixtures","Motion Sensor","Daylight Sensor","Tuning"]
[null,"Example Fixture 1",null,"LED Fixture",null,null,18,1,"Vacancy","Yes","Yes"]
[null,"Example Fixture 2",null,"CFL",2,23,null,4,"Occupancy","No","No"]

{"sheet":"DataCollection_Suite5","index":7,"n_rows":12,"n_cols":11,"rows_kept":12,"cut":false,"hidden":true,"merged":[[8,3,8,10],[0,0,0,11],[1,0,1,3],[1,4,1,8],[1,9,1,10],[2,1,2,3],[2,5,2,10],[3,5,6,10],[7,5,7,6],[7,7,7,8]]}
["ENERGY STAR Tenant Space Lighting Questionnaire"]
[]
[null,"Enter the following information:",null,null,null,"Need to copy information from this suite to another suite?"]
[null,"Suite Name",null,{"$f":"IF(ISBLANK('Base Building Information'!C9),\"\",'Base Building Information'!C9)","v":""},null,"Select a destination sheet from dropdown and click \"Copy data to another suite\". Please review copied information to ensure that all entries are correct for this suite. (NOTE:  You must enter a name for each suite on the Base Building Information tab to enable this function.)"]
[null,"Square Footage"]
[null,"Weekly Operating Hours"]
[]
[null,null,null,null,null,"Select a Suite:",null,"DataCollection_Suite1"]
[null,null,null,"Lighting Fixture Information"]
[null,"Fixture Name",null,"Light Source","Number of Bulbs","Bulb Wattage","Fixture Wattage","Total Number of Fixtures","Motion Sensor","Daylight Sensor","Tuning"]
[null,"Example Fixture 1",null,"LED Fixture",null,null,18,1,"Vacancy","Yes","Yes"]
[null,"Example Fixture 2",null,"CFL",2,23,null,4,"Occupancy","No","No"]

{"sheet":"DataCollection_Suite6","index":8,"n_rows":12,"n_cols":11,"rows_kept":12,"cut":false,"hidden":true,"merged":[[8,3,8,10],[0,0,0,11],[1,0,1,3],[1,4,1,8],[1,9,1,10],[2,1,2,3],[2,5,2,10],[3,5,6,10],[7,5,7,6],[7,7,7,8]]}
["ENERGY STAR Tenant Space Lighting Questionnaire"]
[]
[null,"Enter the following information:",null,null,null,"Need to copy information from this suite to another suite?"]
[null,"Suite Name",null,{"$f":"IF(ISBLANK('Base Building Information'!C10),\"\",'Base Building Information'!C10)","v":""},null,"Select a destination sheet from dropdown and click \"Copy data to another suite\". Please review copied information to ensure that all entries are correct for this suite. (NOTE:  You must enter a name for each suite on the Base Building Information tab to enable this function.)"]
[null,"Square Footage"]
[null,"Weekly Operating Hours"]
[]
[null,null,null,null,null,"Select a Suite:",null,"DataCollection_Suite1"]
[null,null,null,"Lighting Fixture Information"]
[null,"Fixture Name",null,"Light Source","Number of Bulbs","Bulb Wattage","Fixture Wattage","Total Number of Fixtures","Motion Sensor","Daylight Sensor","Tuning"]
[null,"Example Fixture 1",null,"LED Fixture",null,null,18,1,"Vacancy","Yes","Yes"]
[null,"Example Fixture 2",null,"CFL",2,23,null,4,"Occupancy","No","No"]

{"sheet":"DataCollection_Suite7","index":9,"n_rows":12,"n_cols":11,"rows_kept":12,"cut":false,"hidden":true,"merged":[[8,3,8,10],[0,0,0,11],[1,0,1,3],[1,4,1,8],[1,9,1,10],[2,1,2,3],[2,5,2,10],[3,5,6,10],[7,5,7,6],[7,7,7,8]]}
["ENERGY STAR Tenant Space Lighting Questionnaire"]
[]
[null,"Enter the following information:",null,null,null,"Need to copy information from this suite to another suite?"]
[null,"Suite Name",null,{"$f":"IF(ISBLANK('Base Building Information'!C11),\"\",'Base Building Information'!C11)","v":""},null,"Select a destination sheet from dropdown and click \"Copy data to another suite\". Please review copied information to ensure that all entries are correct for this suite. (NOTE:  You must enter a name for each suite on the Base Building Information tab to enable this function.)"]
[null,"Square Footage"]
[null,"Weekly Operating Hours"]
[]
[null,null,null,null,null,"Select a Suite:",null,"DataCollection_Suite1"]
[null,null,null,"Lighting Fixture Information"]
[null,"Fixture Name",null,"Light Source","Number of Bulbs","Bulb Wattage","Fixture Wattage","Total Number of Fixtures","Motion Sensor","Daylight Sensor","Tuning"]
[null,"Example Fixture 1",null,"LED Fixture",null,null,18,1,"Vacancy","Yes","Yes"]
[null,"Example Fixture 2",null,"CFL",2,23,null,4,"Occupancy","No","No"]

{"sheet":"DataCollection_Suite8","index":10,"n_rows":12,"n_cols":11,"rows_kept":12,"cut":false,"hidden":true,"merged":[[8,3,8,10],[0,0,0,11],[1,0,1,3],[1,4,1,8],[1,9,1,10],[2,1,2,3],[2,5,2,10],[3,5,6,10],[7,5,7,6],[7,7,7,8]]}
["ENERGY STAR Tenant Space Lighting Questionnaire"]
[]
[null,"Enter the following information:",null,null,null,"Need to copy information from this suite to another suite?"]
[null,"Suite Name",null,{"$f":"IF(ISBLANK('Base Building Information'!C12),\"\",'Base Building Information'!C12)","v":""},null,"Select a destination sheet from dropdown and click \"Copy data to another suite\". Please review copied information to ensure that all entries are correct for this suite. (NOTE:  You must enter a name for each suite on the Base Building Information tab to enable this function.)"]
[null,"Square Footage"]
[null,"Weekly Operating Hours"]
[]
[null,null,null,null,null,"Select a Suite:",null,"DataCollection_Suite1"]
[null,null,null,"Lighting Fixture Information"]
[null,"Fixture Name",null,"Light Source","Number of Bulbs","Bulb Wattage","Fixture Wattage","Total Number of Fixtures","Motion Sensor","Daylight Sensor","Tuning"]
[null,"Example Fixture 1",null,"LED Fixture",null,null,18,1,"Vacancy","Yes","Yes"]
[null,"Example Fixture 2",null,"CFL",2,23,null,4,"Occupancy","No","No"]

{"sheet":"DataCollection_Suite9","index":11,"n_rows":12,"n_cols":11,"rows_kept":12,"cut":false,"hidden":true,"merged":[[8,3,8,10],[0,0,0,11],[1,0,1,3],[1,4,1,8],[1,9,1,10],[2,1,2,3],[2,5,2,10],[3,5,6,10],[7,5,7,6],[7,7,7,8]]}
["ENERGY STAR Tenant Space Lighting Questionnaire"]
[]
[null,"Enter the following information:",null,null,null,"Need to copy information from this suite to another suite?"]
[null,"Suite Name",null,{"$f":"IF(ISBLANK('Base Building Information'!C13),\"\",'Base Building Information'!C13)","v":""},null,"Select a destination sheet from dropdown and click \"Copy data to another suite\". Please review copied information to ensure that all entries are correct for this suite. (NOTE:  You must enter a name for each suite on the Base Building Information tab to enable this function.)"]
[null,"Square Footage"]
[null,"Weekly Operating Hours"]
[]
[null,null,null,null,null,"Select a Suite:",null,"DataCollection_Suite1"]
[null,null,null,"Lighting Fixture Information"]
[null,"Fixture Name",null,"Light Source","Number of Bulbs","Bulb Wattage","Fixture Wattage","Total Number of Fixtures","Motion Sensor","Daylight Sensor","Tuning"]
[null,"Example Fixture 1",null,"LED Fixture",null,null,18,1,"Vacancy","Yes","Yes"]
[null,"Example Fixture 2",null,"CFL",2,23,null,4,"Occupancy","No","No"]

{"sheet":"DataCollection_Suite10","index":12,"n_rows":12,"n_cols":11,"rows_kept":12,"cut":false,"hidden":true,"merged":[[8,3,8,10],[0,0,0,11],[1,0,1,3],[1,4,1,8],[1,9,1,10],[2,1,2,3],[2,5,2,10],[3,5,6,10],[7,5,7,6],[7,7,7,8]]}
["ENERGY STAR Tenant Space Lighting Questionnaire"]
[]
[null,"Enter the following information:",null,null,null,"Need to copy information from this suite to another suite?"]
[null,"Suite Name",null,{"$f":"IF(ISBLANK('Base Building Information'!C14),\"\",'Base Building Information'!C14)","v":""},null,"Select a destination sheet from dropdown and click \"Copy data to another suite\". Please review copied information to ensure that all entries are correct for this suite. (NOTE:  You must enter a name for each suite on the Base Building Information tab to enable this function.)"]
[null,"Square Footage"]
[null,"Weekly Operating Hours"]
[]
[null,null,null,null,null,"Select a Suite:",null,"DataCollection_Suite1"]
[null,null,null,"Lighting Fixture Information"]
[null,"Fixture Name",null,"Light Source","Number of Bulbs","Bulb Wattage","Fixture Wattage","Total Number of Fixtures","Motion Sensor","Daylight Sensor","Tuning"]
[null,"Example Fixture 1",null,"LED Fixture",null,null,18,1,"Vacancy","Yes","Yes"]
[null,"Example Fixture 2",null,"CFL",2,23,null,4,"Occupancy","No","No"]

{"sheet":"DataCollection_Suite11","index":13,"n_rows":12,"n_cols":11,"rows_kept":12,"cut":false,"hidden":true,"merged":[[8,3,8,10],[0,0,0,11],[1,0,1,3],[1,4,1,8],[1,9,1,10],[2,1,2,3],[2,5,2,10],[3,5,6,10],[7,5,7,6],[7,7,7,8]]}
["ENERGY STAR Tenant Space Lighting Questionnaire"]
[]
[null,"Enter the following information:",null,null,null,"Need to copy information from this suite to another suite?"]
[null,"Suite Name",null,{"$f":"IF(ISBLANK('Base Building Information'!C15),\"\",'Base Building Information'!C15)","v":""},null,"Select a destination sheet from dropdown and click \"Copy data to another suite\". Please review copied information to ensure that all entries are correct for this suite. (NOTE:  You must enter a name for each suite on the Base Building Information tab to enable this function.)"]
[null,"Square Footage"]
[null,"Weekly Operating Hours"]
[]
[null,null,null,null,null,"Select a Suite:",null,"DataCollection_Suite1"]
[null,null,null,"Lighting Fixture Information"]
[null,"Fixture Name",null,"Light Source","Number of Bulbs","Bulb Wattage","Fixture Wattage","Total Number of Fixtures","Motion Sensor","Daylight Sensor","Tuning"]
[null,"Example Fixture 1",null,"LED Fixture",null,null,18,1,"Vacancy","Yes","Yes"]
[null,"Example Fixture 2",null,"CFL",2,23,null,4,"Occupancy","No","No"]

{"sheet":"DataCollection_Suite12","index":14,"n_rows":12,"n_cols":11,"rows_kept":12,"cut":false,"hidden":true,"merged":[[8,3,8,10],[0,0,0,11],[1,0,1,3],[1,4,1,8],[1,9,1,10],[2,1,2,3],[2,5,2,10],[3,5,6,10],[7,5,7,6],[7,7,7,8]]}
["ENERGY STAR Tenant Space Lighting Questionnaire"]
[]
[null,"Enter the following information:",null,null,null,"Need to copy information from this suite to another suite?"]
[null,"Suite Name",null,{"$f":"IF(ISBLANK('Base Building Information'!C16),\"\",'Base Building Information'!C16)","v":""},null,"Select a destination sheet from dropdown and click \"Copy data to another suite\". Please review copied information to ensure that all entries are correct for this suite. (NOTE:  You must enter a name for each suite on the Base Building Information tab to enable this function.)"]
[null,"Square Footage"]
[null,"Weekly Operating Hours"]
[]
[null,null,null,null,null,"Select a Suite:",null,"DataCollection_Suite1"]
[null,null,null,"Lighting Fixture Information"]
[null,"Fixture Name",null,"Light Source","Number of Bulbs","Bulb Wattage","Fixture Wattage","Total Number of Fixtures","Motion Sensor","Daylight Sensor","Tuning"]
[null,"Example Fixture 1",null,"LED Fixture",null,null,18,1,"Vacancy","Yes","Yes"]
[null,"Example Fixture 2",null,"CFL",2,23,null,4,"Occupancy","No","No"]

{"sheet":"DataCollection_Suite13","index":15,"n_rows":12,"n_cols":11,"rows_kept":12,"cut":false,"hidden":true,"merged":[[8,3,8,10],[0,0,0,11],[1,0,1,3],[1,4,1,8],[1,9,1,10],[2,1,2,3],[2,5,2,10],[3,5,6,10],[7,5,7,6],[7,7,7,8]]}
["ENERGY STAR Tenant Space Lighting Questionnaire"]
[]
[null,"Enter the following information:",null,null,null,"Need to copy information from this suite to another suite?"]
[null,"Suite Name",null,{"$f":"IF(ISBLANK('Base Building Information'!C17),\"\",'Base Building Information'!C17)","v":""},null,"Select a destination sheet from dropdown and click \"Copy data to another suite\". Please review copied information to ensure that all entries are correct for this suite. (NOTE:  You must enter a name for each suite on the Base Building Information tab to enable this function.)"]
[null,"Square Footage"]
[null,"Weekly Operating Hours"]
[]
[null,null,null,null,null,"Select a Suite:",null,"DataCollection_Suite1"]
[null,null,null,"Lighting Fixture Information"]
[null,"Fixture Name",null,"Light Source","Number of Bulbs","Bulb Wattage","Fixture Wattage","Total Number of Fixtures","Motion Sensor","Daylight Sensor","Tuning"]
[null,"Example Fixture 1",null,"LED Fixture",null,null,18,1,"Vacancy","Yes","Yes"]
[null,"Example Fixture 2",null,"CFL",2,23,null,4,"Occupancy","No","No"]

{"sheet":"DataCollection_Suite14","index":16,"n_rows":12,"n_cols":11,"rows_kept":12,"cut":false,"hidden":true,"merged":[[8,3,8,10],[0,0,0,11],[1,0,1,3],[1,4,1,8],[1,9,1,10],[2,1,2,3],[2,5,2,10],[3,5,6,10],[7,5,7,6],[7,7,7,8]]}
["ENERGY STAR Tenant Space Lighting Questionnaire"]
[]
[null,"Enter the following information:",null,null,null,"Need to copy information from this suite to another suite?"]
[null,"Suite Name",null,{"$f":"IF(ISBLANK('Base Building Information'!C18),\"\",'Base Building Information'!C18)","v":""},null,"Select a destination sheet from dropdown and click \"Copy data to another suite\". Please review copied information to ensure that all entries are correct for this suite. (NOTE:  You must enter a name for each suite on the Base Building Information tab to enable this function.)"]
[null,"Square Footage"]
[null,"Weekly Operating Hours"]
[]
[null,null,null,null,null,"Select a Suite:",null,"DataCollection_Suite1"]
[null,null,null,"Lighting Fixture Information"]
[null,"Fixture Name",null,"Light Source","Number of Bulbs","Bulb Wattage","Fixture Wattage","Total Number of Fixtures","Motion Sensor","Daylight Sensor","Tuning"]
[null,"Example Fixture 1",null,"LED Fixture",null,null,18,1,"Vacancy","Yes","Yes"]
[null,"Example Fixture 2",null,"CFL",2,23,null,4,"Occupancy","No","No"]

{"sheet":"DataCollection_Suite15","index":17,"n_rows":12,"n_cols":11,"rows_kept":12,"cut":false,"hidden":true,"merged":[[8,3,8,10],[0,0,0,11],[1,0,1,3],[1,4,1,8],[1,9,1,10],[2,1,2,3],[2,5,2,10],[3,5,6,10],[7,5,7,6],[7,7,7,8]]}
["ENERGY STAR Tenant Space Lighting Questionnaire"]
[]
[null,"Enter the following information:",null,null,null,"Need to copy information from this suite to another suite?"]
[null,"Suite Name",null,{"$f":"IF(ISBLANK('Base Building Information'!C19),\"\",'Base Building Information'!C19)","v":""},null,"Select a destination sheet from dropdown and click \"Copy data to another suite\". Please review copied information to ensure that all entries are correct for this suite. (NOTE:  You must enter a name for each suite on the Base Building Information tab to enable this function.)"]
[null,"Square Footage"]
[null,"Weekly Operating Hours"]
[]
[null,null,null,null,null,"Select a Suite:",null,"DataCollection_Suite1"]
[null,null,null,"Lighting Fixture Information"]
[null,"Fixture Name",null,"Light Source","Number of Bulbs","Bulb Wattage","Fixture Wattage","Total Number of Fixtures","Motion Sensor","Daylight Sensor","Tuning"]
[null,"Example Fixture 1",null,"LED Fixture",null,null,18,1,"Vacancy","Yes","Yes"]
[null,"Example Fixture 2",null,"CFL",2,23,null,4,"Occupancy","No","No"]

{"sheet":"DataCollection_Suite16","index":18,"n_rows":12,"n_cols":11,"rows_kept":12,"cut":false,"hidden":true,"merged":[[8,3,8,10],[0,0,0,11],[1,0,1,3],[1,4,1,8],[1,9,1,10],[2,1,2,3],[2,5,2,10],[3,5,6,10],[7,5,7,6],[7,7,7,8]]}
["ENERGY STAR Tenant Space Lighting Questionnaire"]
[]
[null,"Enter the following information:",null,null,null,"Need to copy information from this suite to another suite?"]
[null,"Suite Name",null,{"$f":"IF(ISBLANK('Base Building Information'!C20),\"\",'Base Building Information'!C20)","v":""},null,"Select a destination sheet from dropdown and click \"Copy data to another suite\". Please review copied information to ensure that all entries are correct for this suite. (NOTE:  You must enter a name for each suite on the Base Building Information tab to enable this function.)"]
[null,"Square Footage"]
[null,"Weekly Operating Hours"]
[]
[null,null,null,null,null,"Select a Suite:",null,"DataCollection_Suite1"]
[null,null,null,"Lighting Fixture Information"]
[null,"Fixture Name",null,"Light Source","Number of Bulbs","Bulb Wattage","Fixture Wattage","Total Number of Fixtures","Motion Sensor","Daylight Sensor","Tuning"]
[null,"Example Fixture 1",null,"LED Fixture",null,null,18,1,"Vacancy","Yes","Yes"]
[null,"Example Fixture 2",null,"CFL",2,23,null,4,"Occupancy","No","No"]

{"sheet":"DataCollection_Suite17","index":19,"n_rows":12,"n_cols":11,"rows_kept":12,"cut":false,"hidden":true,"merged":[[8,3,8,10],[0,0,0,11],[1,0,1,3],[1,4,1,8],[1,9,1,10],[2,1,2,3],[2,5,2,10],[3,5,6,10],[7,5,7,6],[7,7,7,8]]}
["ENERGY STAR Tenant Space Lighting Questionnaire"]
[]
[null,"Enter the following information:",null,null,null,"Need to copy information from this suite to another suite?"]
[null,"Suite Name",null,{"$f":"IF(ISBLANK('Base Building Information'!C21),\"\",'Base Building Information'!C21)","v":""},null,"Select a destination sheet from dropdown and click \"Copy data to another suite\". Please review copied information to ensure that all entries are correct for this suite. (NOTE:  You must enter a name for each suite on the Base Building Information tab to enable this function.)"]
[null,"Square Footage"]
[null,"Weekly Operating Hours"]
[]
[null,null,null,null,null,"Select a Suite:",null,"DataCollection_Suite1"]
[null,null,null,"Lighting Fixture Information"]
[null,"Fixture Name",null,"Light Source","Number of Bulbs","Bulb Wattage","Fixture Wattage","Total Number of Fixtures","Motion Sensor","Daylight Sensor","Tuning"]
[null,"Example Fixture 1",null,"LED Fixture",null,null,18,1,"Vacancy","Yes","Yes"]
[null,"Example Fixture 2",null,"CFL",2,23,null,4,"Occupancy","No","No"]

{"sheet":"DataCollection_Suite18","index":20,"n_rows":12,"n_cols":11,"rows_kept":12,"cut":false,"hidden":true,"merged":[[8,3,8,10],[0,0,0,11],[1,0,1,3],[1,4,1,8],[1,9,1,10],[2,1,2,3],[2,5,2,10],[3,5,6,10],[7,5,7,6],[7,7,7,8]]}
["ENERGY STAR Tenant Space Lighting Questionnaire"]
[]
[null,"Enter the following information:",null,null,null,"Need to copy information from this suite to another suite?"]
[null,"Suite Name",null,{"$f":"IF(ISBLANK('Base Building Information'!C22),\"\",'Base Building Information'!C22)","v":""},null,"Select a destination sheet from dropdown and click \"Copy data to another suite\". Please review copied information to ensure that all entries are correct for this suite. (NOTE:  You must enter a name for each suite on the Base Building Information tab to enable this function.)"]
[null,"Square Footage"]
[null,"Weekly Operating Hours"]
[]
[null,null,null,null,null,"Select a Suite:",null,"DataCollection_Suite1"]
[null,null,null,"Lighting Fixture Information"]
[null,"Fixture Name",null,"Light Source","Number of Bulbs","Bulb Wattage","Fixture Wattage","Total Number of Fixtures","Motion Sensor","Daylight Sensor","Tuning"]
[null,"Example Fixture 1",null,"LED Fixture",null,null,18,1,"Vacancy","Yes","Yes"]
[null,"Example Fixture 2",null,"CFL",2,23,null,4,"Occupancy","No","No"]

{"sheet":"DataCollection_Suite19","index":21,"n_rows":12,"n_cols":11,"rows_kept":12,"cut":false,"hidden":true,"merged":[[8,3,8,10],[0,0,0,11],[1,0,1,3],[1,4,1,8],[1,9,1,10],[2,1,2,3],[2,5,2,10],[3,5,6,10],[7,5,7,6],[7,7,7,8]]}
["ENERGY STAR Tenant Space Lighting Questionnaire"]
[]
[null,"Enter the following information:",null,null,null,"Need to copy information from this suite to another suite?"]
[null,"Suite Name",null,{"$f":"IF(ISBLANK('Base Building Information'!C23),\"\",'Base Building Information'!C23)","v":""},null,"Select a destination sheet from dropdown and click \"Copy data to another suite\". Please review copied information to ensure that all entries are correct for this suite. (NOTE:  You must enter a name for each suite on the Base Building Information tab to enable this function.)"]
[null,"Square Footage"]
[null,"Weekly Operating Hours"]
[]
[null,null,null,null,null,"Select a Suite:",null,"DataCollection_Suite1"]
[null,null,null,"Lighting Fixture Information"]
[null,"Fixture Name",null,"Light Source","Number of Bulbs","Bulb Wattage","Fixture Wattage","Total Number of Fixtures","Motion Sensor","Daylight Sensor","Tuning"]
[null,"Example Fixture 1",null,"LED Fixture",null,null,18,1,"Vacancy","Yes","Yes"]
[null,"Example Fixture 2",null,"CFL",2,23,null,4,"Occupancy","No","No"]

{"sheet":"DataCollection_Suite20","index":22,"n_rows":12,"n_cols":11,"rows_kept":12,"cut":false,"hidden":true,"merged":[[8,3,8,10],[0,0,0,11],[1,0,1,3],[1,4,1,8],[1,9,1,10],[2,1,2,3],[2,5,2,10],[3,5,6,10],[7,5,7,6],[7,7,7,8]]}
["ENERGY STAR Tenant Space Lighting Questionnaire"]
[]
[null,"Enter the following information:",null,null,null,"Need to copy information from this suite to another suite?"]
[null,"Suite Name",null,{"$f":"IF(ISBLANK('Base Building Information'!C24),\"\",'Base Building Information'!C24)","v":""},null,"Select a destination sheet from dropdown and click \"Copy data to another suite\". Please review copied information to ensure that all entries are correct for this suite. (NOTE:  You must enter a name for each suite on the Base Building Information tab to enable this function.)"]
[null,"Square Footage"]
[null,"Weekly Operating Hours"]
[]
[null,null,null,null,null,"Select a Suite:",null,"DataCollection_Suite1"]
[null,null,null,"Lighting Fixture Information"]
[null,"Fixture Name",null,"Light Source","Number of Bulbs","Bulb Wattage","Fixture Wattage","Total Number of Fixtures","Motion Sensor","Daylight Sensor","Tuning"]
[null,"Example Fixture 1",null,"LED Fixture",null,null,18,1,"Vacancy","Yes","Yes"]
[null,"Example Fixture 2",null,"CFL",2,23,null,4,"Occupancy","No","No"]